Workbook

Sheet Dashboard
A1: Total Sent: | C1: ='Backing Sheet Data'!S2 -> 350880 | E1: Left process at stage 1: | H1: ='Backing Sheet Data'!T2 -> 203457 | J1: Left process at stage 2: | M1: ='Backing Sheet Data'!U2 -> 3830 | O1: Exited process: | R1: ='Backing Sheet Data'!V2 -> 55861 | T1: Settled: | V1: ='Backing Sheet Data'!W2 -> 3245 | X1: Remaining: | Z1: =C1-H1-M1-R1-V1 -> 84487
A3: Δ from last month: | C3: =VLOOKUP('Backing Sheet Data'!$B$2,tblPLBackingData[],2,FALSE) -> 4722 | E3: Δ from last month: | H3: =VLOOKUP('Backing Sheet Data'!$B$2,tblPLBackingData[],3,FALSE) -> 2325 | J3: Δ from last month: | M3: =VLOOKUP('Backing Sheet Data'!$B$2,tblPLBackingData[],4,FALSE) -> 45 | O3: Δ from last month: | R3: =VLOOKUP('Backing Sheet Data'!$B$2,tblPLBackingData[],5,FALSE) -> 773 | T3: Δ from last month: | V3: =VLOOKUP('Backing Sheet Data'!$B$2,tblPLBackingData[],7,FALSE) -> 643 | X3: Δ from last month: | Z3: =C3-H3-M3-R3-V3 -> 936
A5: Left Process Breakdowns - Stage 1:
A7: Reason | H7: This Month | J7: Last Month | L7: Δ
A8: Liability Decision Timeout | H8: ='Backing Sheet Data'!D25 -> 84916 | J8: =H8-L8 -> 83466 | L8: ='Backing Sheet Data'!E25 -> 1450
A9: Other | H9: ='Backing Sheet Data'!F25 -> 118689 | J9: =H9-L9 -> 117814 | L9: ='Backing Sheet Data'!G25 -> 875
A10: Total | H10: =SUM(H8:I9) -> 203605 | J10: =SUM(J8:K9) -> 201280 | L10: =SUM(L8:M9) -> 2325
A11: Left Process Breakdowns - Stage 2:
A13: Reason | H13: This Month | J13: Last Month | L13: Δ
A14: Interim payment more than £1,000 not agreed: | H14: ='Backing Sheet Data'!H25 -> 52 | J14: =H14-L14 -> 51 | L14: ='Backing Sheet Data'!I25 -> 1
A15: Settlement pack repudiated: | H15: ='Backing Sheet Data'!J25 -> 144 | J15: =H15-L15 -> 142 | L15: ='Backing Sheet Data'!K25 -> 2
A16: Settlement pack timeout: | H16: ='Backing Sheet Data'!L25 -> 3634 | J16: 3592 | L16: ='Backing Sheet Data'!M25 -> 42
A17: No agreement; Court Proceedings pack: | H17: ='Backing Sheet Data'!N25 -> 3245 | J17: 3163 | L17: ='Backing Sheet Data'!O25 -> 82
A18: Total | H18: =SUM(H14:I17) -> 7075 | J18: =SUM(J14:K17) -> 6948 | L18: =SUM(L14:M17) -> 127

Sheet Backing Sheet Data
A1: Reporting date | B1: 2019-04-01
A2: Latest month | B2: =EDATE(B1,-1) -> 2019-03-01 | S2: =SUBTOTAL(9,tblPLBackingData[CNFs Sent]) -> 350880 | T2: =SUBTOTAL(9,tblPLBackingData[CNFs left at Stage 1]) -> 203457 | U2: =SUBTOTAL(9,tblPLBackingData[Stage 2 Exit]) -> 3830 | V2: =SUBTOTAL(9,tblPLBackingData[Exit process]) -> 55861 | W2: =SUBTOTAL(9,tblPLBackingData[Court Pack]) -> 3245 | X2: =SUBTOTAL(9,tblPLBackingData[Settled claims]) -> 34910 | Y2: =SUBTOTAL(9,tblPLBackingData[General Damages]) -> 245341.4416
R3: Period | S3: CNFs Sent | T3: CNFs left at Stage 1 | U3: Stage 2 Exit | V3: Exit process | W3: Court Pack | X3: Settled claims | Y3: General Damages | AA3: Period | AB3: Previous 12 months rolling sum
A4: Rolling 12 CNFs sent | D4: Court packs rolling 12 | R4: 2013-09-01 | S4: 1849 | T4: 208 | U4: 0 | V4: 91 | W4: 0 | X4: 4 | Y4: 1300 | AA4: 2013-09-01
R5: 2013-10-01 | S5: 3391 | T5: 840 | U5: 1 | V5: 224 | W5: 0 | X5: 8 | Y5: 1281.25 | AA5: 2013-10-01
A6: Period | B6: Rolling 12 Sent | D6: Row Labels | E6: Total Court Packs | G6: Row Labels | H6: Ave General Damages | R6: 2013-11-01 | S6: 3851 | T6: 1558 | U6: 0 | V6: 271 | W6: 0 | X6: 39 | Y6: 1977.948717 | AA6: 2013-11-01
A7: 2018-04-01 | B7: =VLOOKUP(A7,tblPrevious12[#All],2,FALSE) -> 58645 | D7: 2018-04-01 | E7: 55 | G7: 2018-04-01 | H7: 4344.920223 | R7: 2013-12-01 | S7: 3361 | T7: 1837 | U7: 6 | V7: 293 | W7: 0 | X7: 50 | Y7: 2105 | AA7: 2013-12-01
A8: 2018-05-01 | B8: =VLOOKUP(A8,tblPrevious12[#All],2,FALSE) -> 58326 | D8: 2018-05-01 | E8: 73 | G8: 2018-05-01 | H8: 4182.450317 | R8: 2014-01-01 | S8: 5241 | T8: 2352 | U8: 10 | V8: 479 | W8: 2 | X8: 108 | Y8: 2417.350092 | AA8: 2014-01-01
A9: 2018-06-01 | B9: =VLOOKUP(A9,tblPrevious12[#All],2,FALSE) -> 58084 | D9: 2018-06-01 | E9: 78 | G9: 2018-06-01 | H9: 3962.382128 | R9: 2014-02-01 | S9: 5112 | T9: 2165 | U9: 16 | V9: 443 | W9: 4 | X9: 149 | Y9: 2474.980067 | AA9: 2014-02-01
A10: 2018-07-01 | B10: =VLOOKUP(A10,tblPrevious12[#All],2,FALSE) -> 58067 | D10: 2018-07-01 | E10: 69 | G10: 2018-07-01 | H10: 4341.497335 | R10: 2014-03-01 | S10: 5783 | T10: 3147 | U10: 29 | V10: 581 | W10: 5 | X10: 208 | Y10: 2764.122451 | AA10: 2014-03-01
A11: 2018-08-01 | B11: =VLOOKUP(A11,tblPrevious12[#All],2,FALSE) -> 57774 | D11: 2018-08-01 | E11: 76 | G11: 2018-08-01 | H11: 4379.137663 | R11: 2014-04-01 | S11: 5531 | T11: 3269 | U11: 26 | V11: 675 | W11: 7 | X11: 245 | Y11: 2658.43751 | AA11: 2014-04-01
A12: 2018-09-01 | B12: =VLOOKUP(A12,tblPrevious12[#All],2,FALSE) -> 57604 | D12: 2018-09-01 | E12: 60 | G12: 2018-09-01 | H12: 4282.278013 | R12: 2014-05-01 | S12: 5843 | T12: 3467 | U12: 34 | V12: 730 | W12: 4 | X12: 269 | Y12: 2944.211561 | AA12: 2014-05-01
A13: 2018-10-01 | B13: =VLOOKUP(A13,tblPrevious12[#All],2,FALSE) -> 57720 | D13: 2018-10-01 | E13: 70 | G13: 2018-10-01 | H13: 4335.47675 | R13: 2014-06-01 | S13: 6217 | T13: 3535 | U13: 41 | V13: 749 | W13: 22 | X13: 344 | Y13: 3020.030377 | AA13: 2014-06-01
A14: 2018-11-01 | B14: =VLOOKUP(A14,tblPrevious12[#All],2,FALSE) -> 57743 | D14: 2018-11-01 | E14: 59 | G14: 2018-11-01 | H14: 4326.555398 | R14: 2014-07-01 | S14: 7252 | T14: 3973 | U14: 53 | V14: 881 | W14: 19 | X14: 446 | Y14: 3146.820896 | AA14: 2014-07-01
A15: 2018-12-01 | B15: =VLOOKUP(A15,tblPrevious12[#All],2,FALSE) -> 57571 | D15: 2018-12-01 | E15: 48 | G15: 2018-12-01 | H15: 3920.256602 | R15: 2014-08-01 | S15: 6162 | T15: 3643 | U15: 37 | V15: 754 | W15: 13 | X15: 384 | Y15: 3308.337057 | AA15: 2014-08-01 | AB15: =SUM(S4:S15) -> 59593
A16: 2019-01-01 | B16: =VLOOKUP(A16,tblPrevious12[#All],2,FALSE) -> 57076 | D16: 2019-01-01 | E16: 82 | G16: 2019-01-01 | H16: 4257.279107 | R16: 2014-09-01 | S16: 7272 | T16: 4136 | U16: 62 | V16: 1008 | W16: 22 | X16: 485 | Y16: 3106.994659 | AA16: 2014-09-01 | AB16: 65016
A17: 2019-02-01 | B17: =VLOOKUP(A17,tblPrevious12[#All],2,FALSE) -> 56677 | D17: 2019-02-01 | E17: 66 | G17: 2019-02-01 | H17: 3970.651423 | R17: 2014-10-01 | S17: 7688 | T17: 4310 | U17: 60 | V17: 1134 | W17: 34 | X17: 616 | Y17: 3176.703084 | AA17: 2014-10-01 | AB17: 69313
A18: 2019-03-01 | B18: =VLOOKUP(A18,tblPrevious12[#All],2,FALSE) -> 56576 | D18: 2019-03-01 | E18: 82 | G18: 2019-03-01 | H18: 4356.284447 | R18: 2014-11-01 | S18: 6260 | T18: 4079 | U18: 62 | V18: 971 | W18: 28 | X18: 563 | Y18: 3329.607655 | AA18: 2014-11-01 | AB18: 71722
D19: Grand Total | E19: 818 | G19: Grand Total | H19: 50659.16941 | R19: 2014-12-01 | S19: 5255 | T19: 4091 | U19: 62 | V19: 979 | W19: 37 | X19: 579 | Y19: 3291.011208 | AA19: 2014-12-01 | AB19: 73616
R20: 2015-01-01 | S20: 6218 | T20: 3618 | U20: 55 | V20: 977 | W20: 28 | X20: 633 | Y20: 3313.372306 | AA20: 2015-01-01 | AB20: 74593
R21: 2015-02-01 | S21: 6329 | T21: 3152 | U21: 67 | V21: 833 | W21: 43 | X21: 633 | Y21: 3339.562353 | AA21: 2015-02-01 | AB21: 75810
R22: 2015-03-01 | S22: 6750 | T22: 4068 | U22: 65 | V22: 1072 | W22: 38 | X22: 730 | Y22: 3404.703342 | AA22: 2015-03-01 | AB22: 76777
B23: =SUBTOTAL(9,B25:B38) -> 68458 | R23: 2015-04-01 | S23: 5914 | T23: 3802 | U23: 79 | V23: 953 | W23: 40 | X23: 661 | Y23: 3577.572465 | AA23: 2015-04-01 | AB23: =SUM(S12:S23) -> 77160
A24: Exit Process Reason | B24: Total | D24: LDT | E24: This Month LDT | F24: Other Liability | G24: This Month Other Liability | H24: Interim Payment Not Agreed | I24: This Month Interim Payment Not Agreed | J24: Repudiated | K24: This Month Repudiated | L24: Timeout | M24: This Month Timeout | N24: Court Proceedings | O24: This Month Court Proceedings | R24: 2015-05-01 | S24: 5414 | T24: 3397 | U24: 70 | V24: 949 | W24: 29 | X24: 632 | Y24: 3448.491534 | AA24: 2015-05-01 | AB24: 76731
A25: Claim is too complex for process | B25: 584 | D25: 84916 | E25: 1450 | F25: 118689 | G25: 875 | H25: 52 | I25: 1 | J25: 144 | K25: 2 | L25: 3634 | M25: 42 | N25: 3245 | O25: 82 | R25: 2015-06-01 | S25: 6378 | T25: 3939 | U25: 59 | V25: 1006 | W25: 40 | X25: 729 | Y25: 3627.668943 | AA25: 2015-06-01 | AB25: 76892
A26: Claim requires further investigation | B26: 21854 | R26: 2015-07-01 | S26: 6812 | T26: 3911 | U26: 75 | V26: 1063 | W26: 44 | X26: 748 | Y26: 3798.308355 | AA26: 2015-07-01 | AB26: 76452
A27: Duplicated claim | B27: 5923 | R27: 2015-08-01 | S27: 5961 | T27: 3590 | U27: 60 | V27: 939 | W27: 38 | X27: 626 | Y27: 3750.637843 | AA27: 2015-08-01 | AB27: 76251
A28: Incomplete information provided on CNF | B28: 4549 | R28: 2015-09-01 | S28: 6183 | T28: 3947 | U28: 79 | V28: 1028 | W28: 52 | X28: 675 | Y28: 3700.065362 | AA28: 2015-09-01 | AB28: 75162
A29: Interim payment for child claimant | B29: 41 | R29: 2015-10-01 | S29: 6162 | T29: 3769 | U29: 68 | V29: 1020 | W29: 42 | X29: 722 | Y29: 3454.266315 | AA29: 2015-10-01 | AB29: 73636
A30: Interim Payment partial offer not accepted | B30: 23 | R30: 2015-11-01 | S30: 5841 | T30: 3603 | U30: 85 | V30: 1008 | W30: 50 | X30: 709 | Y30: 3808.784358 | AA30: 2015-11-01 | AB30: 73217
A31: Interim Payment request not answered and/or paid on time | B31: 303 | R31: 2015-12-01 | S31: 4584 | T31: 3447 | U31: 87 | V31: 881 | W31: 45 | X31: 640 | Y31: 3785.048031 | AA31: 2015-12-01 | AB31: 72546
A32: Other | B32: 28989 | R32: 2016-01-01 | S32: 5222 | T32: 3271 | U32: 60 | V32: 933 | W32: 39 | X32: 620 | Y32: 3964.270467 | AA32: 2016-01-01 | AB32: 71550
A33: Stage 1 costs not paid on time | B33: 1662 | R33: 2016-02-01 | S33: 5739 | T33: 2786 | U33: 61 | V33: 859 | W33: 51 | X33: 662 | Y33: 3763.320241 | AA33: 2016-02-01 | AB33: 70960
A34: Value of claim below ú1,000 | B34: 343 | R34: 2016-03-01 | S34: 5737 | T34: 3433 | U34: 76 | V34: 1026 | W34: 50 | X34: 676 | Y34: 3927.201863 | AA34: 2016-03-01 | AB34: 69947
A35: Value of claim exceeds the upper limit | B35: 1606 | R35: 2016-04-01 | S35: 5464 | T35: 3395 | U35: 80 | V35: 981 | W35: 45 | X35: 662 | Y35: 3829.326374 | AA35: 2016-04-01 | AB35: 69497
A36: Withdrawal of claim | B36: 2376 | R36: 2016-05-01 | S36: 5004 | T36: 3163 | U36: 71 | V36: 982 | W36: 45 | X36: 568 | Y36: 3940.31625 | AA36: 2016-05-01 | AB36: 69087
A37: Withdrawal of offer | B37: 205 | R37: 2016-06-01 | S37: 4435 | T37: 3405 | U37: 87 | V37: 973 | W37: 68 | X37: 627 | Y37: 3940.814944 | AA37: 2016-06-01 | AB37: 67144
R38: 2016-07-01 | S38: 4824 | T38: 2698 | U38: 91 | V38: 884 | W38: 54 | X38: 526 | Y38: 4052.135988 | AA38: 2016-07-01 | AB38: 65156
R39: 2016-08-01 | S39: 5351 | T39: 2216 | U39: 38 | V39: 606 | W39: 35 | X39: 561 | Y39: 3945.673814 | AA39: 2016-08-01 | AB39: 64546
R40: 2016-09-01 | S40: 5700 | T40: 3277 | U40: 84 | V40: 954 | W40: 77 | X40: 604 | Y40: 3909.755695 | AA40: 2016-09-01 | AB40: 64063
R41: 2016-10-01 | S41: 5182 | T41: 3203 | U41: 87 | V41: 991 | W41: 53 | X41: 611 | Y41: 3817.713633 | AA41: 2016-10-01 | AB41: 63083
R42: 2016-11-01 | S42: 5207 | T42: 3320 | U42: 86 | V42: 939 | W42: 61 | X42: 602 | Y42: 4037.591112 | AA42: 2016-11-01 | AB42: 62449
R43: 2016-12-01 | S43: 3892 | T43: 2775 | U43: 76 | V43: 784 | W43: 56 | X43: 537 | Y43: 4184.441098 | AA43: 2016-12-01 | AB43: 61757
R44: 2017-01-01 | S44: 5119 | T44: 2833 | U44: 74 | V44: 878 | W44: 85 | X44: 574 | Y44: 3854.929425 | AA44: 2017-01-01 | AB44: 61654
R45: 2017-02-01 | S45: 4907 | T45: 2374 | U45: 56 | V45: 750 | W45: 64 | X45: 599 | Y45: 3942.103121 | AA45: 2017-02-01 | AB45: 60822
R46: 2017-03-01 | S46: 5804 | T46: 3297 | U46: 80 | V46: 944 | W46: 78 | X46: 650 | Y46: 4167.231523 | AA46: 2017-03-01 | AB46: 60889
R47: 2017-04-01 | S47: 4124 | T47: 2622 | U47: 66 | V47: 742 | W47: 44 | X47: 568 | Y47: 4270.86551 | AA47: 2017-04-01 | AB47: 59549
R48: 2017-05-01 | S48: 5058 | T48: 3139 | U48: 63 | V48: 873 | W48: 77 | X48: 637 | Y48: 4016.531632 | AA48: 2017-05-01 | AB48: 59603
R49: 2017-06-01 | S49: 4985 | T49: 2962 | U49: 67 | V49: 891 | W49: 72 | X49: 599 | Y49: 4289.413806 | AA49: 2017-06-01 | AB49: 60153
R50: 2017-07-01 | S50: 4865 | T50: 2907 | U50: 64 | V50: 909 | W50: 87 | X50: 570 | Y50: 4294.28628 | AA50: 2017-07-01 | AB50: 60194
R51: 2017-08-01 | S51: 5187 | T51: 2924 | U51: 62 | V51: 901 | W51: 72 | X51: 562 | Y51: 4111.975391 | AA51: 2017-08-01 | AB51: 60030
R52: 2017-09-01 | S52: 4907 | T52: 2888 | U52: 57 | V52: 823 | W52: 65 | X52: 537 | Y52: 4020.259236 | AA52: 2017-09-01 | AB52: 59237
R53: 2017-10-01 | S53: 5257 | T53: 3055 | U53: 64 | V53: 894 | W53: 84 | X53: 560 | Y53: 4083.875339 | AA53: 2017-10-01 | AB53: 59312
R54: 2017-11-01 | S54: 5166 | T54: 3115 | U54: 52 | V54: 922 | W54: 89 | X54: 575 | Y54: 4293.342486 | AA54: 2017-11-01 | AB54: 59271
R55: 2017-12-01 | S55: 3612 | T55: 2616 | U55: 58 | V55: 766 | W55: 73 | X55: 447 | Y55: 4242.804899 | AA55: 2017-12-01 | AB55: 58991
R56: 2018-01-01 | S56: 5162 | T56: 2877 | U56: 47 | V56: 890 | W56: 75 | X56: 521 | Y56: 4110.365758 | AA56: 2018-01-01 | AB56: 59034
R57: 2018-02-01 | S57: 4957 | T57: 2271 | U57: 52 | V57: 744 | W57: 61 | X57: 554 | Y57: 4213.65962 | AA57: 2018-02-01 | AB57: 59084
R58: 2018-03-01 | S58: 4823 | T58: 2970 | U58: 73 | V58: 893 | W58: 81 | X58: 577 | Y58: 4146.780155 | AA58: 2018-03-01 | AB58: 58103
R59: 2018-04-01 | S59: 4666 | T59: 2772 | U59: 69 | V59: 825 | W59: 55 | X59: 538 | Y59: 4344.920223 | AA59: 2018-04-01 | AB59: 58645
R60: 2018-05-01 | S60: 4739 | T60: 2887 | U60: 62 | V60: 889 | W60: 73 | X60: 567 | Y60: 4182.450317 | AA60: 2018-05-01 | AB60: 58326
R61: 2018-06-01 | S61: 4743 | T61: 2818 | U61: 56 | V61: 819 | W61: 78 | X61: 545 | Y61: 3962.382128 | AA61: 2018-06-01 | AB61: 58084
R62: 2018-07-01 | S62: 4848 | T62: 2817 | U62: 51 | V62: 939 | W62: 69 | X62: 503 | Y62: 4341.497335 | AA62: 2018-07-01 | AB62: =SUM(S51:S62) -> 58067
R63: 2018-08-01 | S63: 4894 | T63: 2911 | U63: 57 | V63: 905 | W63: 76 | X63: 505 | Y63: 4379.137663 | AA63: 2018-08-01 | AB63: =SUM(S52:S63) -> 57774
R64: 2018-09-01 | S64: 4737 | T64: 2565 | U64: 50 | V64: 848 | W64: 60 | X64: 443 | Y64: 4282.278013 | AA64: 2018-09-01 | AB64: =SUM(S53:S64) -> 57604
R65: 2018-10-01 | S65: 5373 | T65: 3010 | U65: 48 | V65: 985 | W65: 70 | X65: 560 | Y65: 4335.47675 | AA65: 2018-10-01 | AB65: =SUM(S54:S65) -> 57720
R66: 2018-11-01 | S66: 5189 | T66: 3053 | U66: 54 | V66: 979 | W66: 59 | X66: 628 | Y66: 4326.555398 | AA66: 2018-11-01 | AB66: =SUM(S55:S66) -> 57743
R67: 2018-12-01 | S67: 3440 | T67: 2557 | U67: 43 | V67: 742 | W67: 48 | X67: 471 | Y67: 3920.256602 | AA67: 2018-12-01 | AB67: =SUM(S56:S67) -> 57571
R68: 2019-01-01 | S68: 4667 | T68: 3001 | U68: 60 | V68: 818 | W68: 82 | X68: 538 | Y68: 4257.279107 | AA68: 2019-01-01 | AB68: =SUM(S57:S68) -> 57076
R69: 2019-02-01 | S69: 4558 | T69: 2096 | U69: 55 | V69: 615 | W69: 66 | X69: 548 | Y69: 3970.651423 | AA69: 2019-02-01 | AB69: =SUM(S58:S69) -> 56677
R70: 2019-03-01 | S70: 4722 | T70: 2325 | U70: 45 | V70: 773 | W70: 82 | X70: 643 | Y70: 4356.284447 | AA70: 2019-03-01 | AB70: =SUM(S59:S70) -> 56576

Sheet Year Calculations
A1: Period | B1: CNFs sent | C1: CNFs left at stage 1 | D1: Stage 2 exit | E1: Exit process | F1: Court pack | G1: Settled claims
A2: 2013-14 | B2: =SUM('Backing Sheet Data'!S4:S15) -> 59593 | C2: =SUM('Backing Sheet Data'!T4:T15) -> 29994 | D2: =SUM('Backing Sheet Data'!U4:U15) -> 253 | E2: =SUM('Backing Sheet Data'!V4:V15) -> 6171 | F2: =SUM('Backing Sheet Data'!W4:W15) -> 76 | G2: =SUM('Backing Sheet Data'!X4:X15) -> 2254
A3: 2014-15 | B3: =SUM('Backing Sheet Data'!S16:S27) -> 76251 | C3: =SUM('Backing Sheet Data'!T16:T27) -> 46093 | D3: =SUM('Backing Sheet Data'!U16:U27) -> 776 | E3: =SUM('Backing Sheet Data'!V16:V27) -> 11884 | F3: =SUM('Backing Sheet Data'!W16:W27) -> 421 | G3: =SUM('Backing Sheet Data'!X16:X27) -> 7635
A4: 2015-16 | B4: =SUM('Backing Sheet Data'!S28:S39) -> 64546 | C4: =SUM('Backing Sheet Data'!T28:T39) -> 39133 | D4: =SUM('Backing Sheet Data'!U28:U39) -> 883 | E4: =SUM('Backing Sheet Data'!V28:V39) -> 11181 | F4: =SUM('Backing Sheet Data'!W28:W39) -> 576 | G4: =SUM('Backing Sheet Data'!X28:X39) -> 7648
A5: 2016-17 | B5: =SUM('Backing Sheet Data'!S40:S51) -> 60030 | C5: =SUM('Backing Sheet Data'!T40:T51) -> 35633 | D5: =SUM('Backing Sheet Data'!U40:U51) -> 865 | E5: =SUM('Backing Sheet Data'!V40:V51) -> 10556 | F5: =SUM('Backing Sheet Data'!W40:W51) -> 826 | G5: =SUM('Backing Sheet Data'!X40:X51) -> 7113
A6: 2017-18 | B6: =SUM('Backing Sheet Data'!S52:S63) -> 57774 | C6: =SUM('Backing Sheet Data'!T52:T63) -> 33997 | D6: =SUM('Backing Sheet Data'!U52:U63) -> 698 | E6: =SUM('Backing Sheet Data'!V52:V63) -> 10309 | F6: =SUM('Backing Sheet Data'!W52:W63) -> 879 | G6: =SUM('Backing Sheet Data'!X52:X63) -> 6429
A7: 2018-19 | B7: =SUM('Backing Sheet Data'!S64:S70) -> 32686 | C7: =SUM('Backing Sheet Data'!T64:T70) -> 18607 | D7: =SUM('Backing Sheet Data'!U64:U70) -> 355 | E7: =SUM('Backing Sheet Data'!V64:V70) -> 5760 | F7: =SUM('Backing Sheet Data'!W64:W70) -> 467 | G7: =SUM('Backing Sheet Data'!X64:X70) -> 3831
A10: Update last period monthly!
